bitfinex/quotes_BTCUSD_20250711
["timestamp","ask_amount","ask_price","bid_price","bid_amount"]
[1752266201100,0.44590145,117750.0,117740.0,0.73356048]
[1752266202182,0.44590145,117750.0,117740.0,2.02799148]
[1752266202594,0.44590145,117750.0,117740.0,1.92470048]
[1752266203308,0.0154,117760.0,117740.0,0.73356048]
[1752266203450,0.0154,117760.0,117750.0,0.22224314]
[1752266203650,0.53303772,117770.0,117760.0,0.34]
[1752266203933,0.53504772,117770.0,117760.0,0.71176168]
[1752266204071,0.53205772,117770.0,117760.0,0.71176168]
[1752266204877,0.53205772,117770.0,117760.0,0.71499168]
[1752266205054,0.53405772,117770.0,117760.0,0.71499168]
[1752266205909,0.53505772,117770.0,117760.0,0.71176168]
[1752266206119,0.09438627,117770.0,117760.0,0.70977168]
[1752266206321,0.11018627,117770.0,117760.0,0.70977168]
[1752266208557,0.55408772,117770.0,117760.0,0.70977168]
[1752266209580,0.11018627,117770.0,117760.0,0.70977168]
[1752266210652,0.08914627,117770.0,117760.0,0.71489168]
[1752266210852,0.09118627,117770.0,117760.0,0.71489168]
[1752266211012,0.09118627,117770.0,117760.0,0.71173168]
[1752266211490,0.10941627,117770.0,117760.0,0.71173168]
[1752266211661,0.10941627,117770.0,117760.0,0.70977168]
[1752266220563,0.10941627,117770.0,117760.0,0.70965168]
[1752266228939,0.10941627,117770.0,117760.0,0.91313168]
[1752266230903,0.10941627,117770.0,117760.0,0.82770175]
[1752266231048,0.10941627,117770.0,117760.0,0.67432]
[1752266231265,0.10941627,117770.0,117760.0,0.33432]
[1752266231909,0.12395712,117770.0,117760.0,0.33432]
[1752266232635,0.14328897,117770.0,117760.0,0.33432]
[1752266234702,0.12395712,117770.0,117760.0,0.33432]
[1752266241744,0.20938705,117770.0,117760.0,0.33432]
[1752266241975,0.23426142,117770.0,117760.0,0.33432]
[1752266242417,0.25972242,117770.0,117760.0,0.33432]
[1752266244445,0.25972242,117770.0,117760.0,0.20348]
[1752266244610,0.25972242,117770.0,117760.0,0.33432]
[1752266245216,0.25872242,117770.0,117760.0,0.33432]
[1752266245432,0.25672242,117770.0,117760.0,0.33432]
[1752266245673,0.25972242,117770.0,117760.0,0.33432]
[1752266246728,0.26172242,117770.0,117760.0,0.33432]
[1752266256871,0.60172242,117770.0,117760.0,0.33432]
[1752266258028,0.60172242,117770.0,117760.0,0.33436]
[1752266258763,0.04554085,117750.0,117740.0,0.01326112]
[1752266258972,0.13512421,117750.0,117740.0,0.14410112]
[1752266259177,0.13813421,117750.0,117740.0,0.14410112]
[1752266259600,0.16360021,117750.0,117740.0,0.14410112]
[1752266261327,0.12832593,117750.0,117740.0,0.14625112]
[1752266261562,0.13044936,117750.0,117740.0,0.14940112]
[1752266261829,0.04501943,117750.0,117740.0,0.14940112]
[1752266262261,0.01955343,117750.0,117740.0,0.14944112]
[1752266263147,0.01955343,117750.0,117740.0,0.15144112]
[1752266263442,0.01955343,117750.0,117740.0,0.14944112]
[1752266263894,0.01955343,117750.0,117740.0,0.14629112]
[1752266264082,0.02055343,117750.0,117740.0,0.14629112]
[1752266264744,0.02055343,117750.0,117740.0,0.13303]
[1752266265592,0.02055343,117750.0,117740.0,0.13618]
[1752266267060,0.02055343,117750.0,117740.0,0.13303]
[1752266267751,0.02055343,117750.0,117740.0,0.14629171]
[1752266269416,0.02055343,117750.0,117740.0,0.14947171]
[1752266269906,0.0919997,117750.0,117740.0,0.14629171]
[1752266270168,0.1074997,117750.0,117740.0,0.14629171]
[1752266270624,0.1074997,117750.0,117740.0,0.13303]
[1752266270891,0.1074997,117750.0,117740.0,0.13088]
[1752266270892,0.19292963,117750.0,117740.0,0.13088]
[1752266271142,0.1908062,117750.0,117740.0,0.13088]
[1752266271389,0.2162712,117750.0,117740.0,0.13084]
[1752266278163,0.0164,117750.0,117740.0,0.136]
[1752266278385,0.01852343,117750.0,117740.0,0.136]
[1752266280174,0.0920997,117750.0,117740.0,0.13282]
[1752266280375,0.1080997,117750.0,117740.0,0.13282]
[1752266282220,0.0920997,117750.0,117740.0,0.13282]
[1752266284909,0.1077997,117750.0,117740.0,0.13282]
[1752266286850,0.1077997,117750.0,117740.0,0.13084]
[1752266287296,0.1911062,117750.0,117740.0,4e-05]
[1752266287522,0.1911062,117750.0,117740.0,0.1308]
[1752266287646,0.2165712,117750.0,117740.0,0.1308]
[1752266291950,0.12729493,117750.0,117740.0,0.13596]
[1752266292171,0.00312343,117750.0,117740.0,0.15116]
[1752266292578,0.01922343,117750.0,117740.0,0.15116]
[1752266292998,0.01922343,117750.0,117740.0,0.13596]
[1752266296180,0.03376428,117750.0,117740.0,0.13596]
[1752266297054,0.47764485,117750.0,117740.0,0.13596]
[1752266297286,0.47552142,117750.0,117740.0,0.13596]
[1752266298161,0.47763142,117750.0,117730.0,0.01471892]
[1752266298386,0.446004,117740.0,117730.0,0.01480315]
[1752266298608,0.44388057,117740.0,117730.0,0.01650315]
[1752266299580,0.44388057,117740.0,117730.0,0.14722315]
[1752266300860,0.44388057,117740.0,117730.0,0.14922315]
[1752266301052,0.44388057,117740.0,117730.0,0.14722315]
[1752266301248,0.44388057,117740.0,117730.0,0.14922315]
[1752266306397,0.45842142,117740.0,117730.0,0.14922315]
[1752266309663,0.44516142,117740.0,117730.0,0.14922315]
[1752266315302,0.01454085,117740.0,117730.0,0.14922315]
[1752266315479,0.46054485,117740.0,117730.0,0.14922315]
[1752266315691,0.45842142,117740.0,117730.0,0.14922315]
[1752266316786,1.01324628,117740.0,117730.0,0.14922315]
[1752266317968,1.03193628,117740.0,117730.0,0.14922315]
[1752266318153,1.03404628,117740.0,117730.0,0.14922315]
[1752266318294,1.03404628,117740.0,117730.0,0.13450423]
[1752266320175,1.03404628,117740.0,117730.0,0.43450423]
[1752266320313,1.03404628,117740.0,117730.0,0.30208423]
[1752266320517,1.05054628,117740.0,117730.0,0.43276423]
[1752266322610,1.05154628,117740.0,117730.0,0.43276423]
[1752266322805,1.06878149,117740.0,117730.0,0.43276423]
[1752266323069,0.49678775,117740.0,117730.0,0.43276423]
[1752266325827,0.51402471,117740.0,117730.0,0.43276423]
[1752266327503,0.49678775,117740.0,117730.0,0.43276423]
[1752266329404,0.49678775,117740.0,117730.0,0.42724471]
[1752266334778,0.48028775,117740.0,117730.0,0.42724471]
[1752266335678,0.49618775,117740.0,117730.0,0.42724471]
[1752266336701,0.45948775,117740.0,117730.0,0.45954471]
[1752266336919,0.4449469,117740.0,117730.0,0.46060471]
[1752266337126,0.45948775,117740.0,117730.0,0.46060471]
[1752266337780,0.45848775,117740.0,117730.0,0.46060471]
[1752266338186,0.45848775,117740.0,117730.0,0.46160471]
[1752266338935,0.45848775,117740.0,117730.0,0.48054471]
[1752266339513,0.45848775,117740.0,117730.0,0.46544471]
[1752266347926,0.46141775,117740.0,117730.0,0.46544471]
[1752266349436,0.47691775,117740.0,117730.0,0.46544471]
[1752266352837,0.69874765,117740.0,117730.0,0.46544471]
[1752266354399,0.69874765,117740.0,117730.0,0.66900471]
[1752266358083,1.03364605,117740.0,117730.0,0.65180471]
[1752266358288,1.05014605,117740.0,117730.0,0.65180471]
[1752266359240,2.04881125,117740.0,117730.0,0.65180471]
[1752266359538,1.05014605,117740.0,117730.0,0.65080471]
[1752266359678,2.13524118,117740.0,117730.0,0.52012471]
[1752266359887,2.47524118,117740.0,117730.0,0.52012471]
[1752266360085,2.47524118,117740.0,117730.0,0.65060471]
[1752266360427,2.47624118,117740.0,117730.0,0.65060471]
[1752266361048,1.36700122,117740.0,117730.0,0.65060471]
[1752266371674,0.0157,117750.0,117730.0,0.66750471]
[1752266371893,0.45342522,117760.0,117740.0,0.27912]
[1752266372101,0.53885515,117760.0,117750.0,0.26092]
[1752266372308,0.54086515,117760.0,117750.0,0.26092]
[1752266372480,0.54086515,117760.0,117750.0,0.26302]
[1752266372684,0.555406,117760.0,117750.0,0.26302]
[1752266373254,0.99945122,117760.0,117750.0,0.26302]
[1752266373455,1.00245122,117760.0,117750.0,0.26302]
[1752266373701,0.44704522,117760.0,117750.0,0.28172]
[1752266373943,0.90563129,117760.0,117750.0,0.28172]
[1752266374088,0.46158607,117760.0,117750.0,0.28172]
[1752266374698,0.45858607,117760.0,117750.0,0.28172]
[1752266375020,0.47559607,117760.0,117750.0,0.26302]
[1752266375222,0.47659607,117760.0,117750.0,0.26302]
[1752266375450,0.92264129,117760.0,117750.0,0.26302]
[1752266376002,0.92064129,117760.0,117750.0,0.26302]
[1752266376282,0.92164129,117760.0,117750.0,0.28172]
[1752266377099,0.92164129,117760.0,117750.0,0.26602]
[1752266381111,0.92467129,117760.0,117750.0,0.26302]
[1752266382652,0.92467129,117760.0,117750.0,0.26092]
[1752266383894,1.02580122,117760.0,117750.0,0.2608]
[1752266384497,1.36580122,117760.0,117750.0,0.2608]
[1752266390090,1.35010122,117760.0,117750.0,0.26289]
[1752266390287,1.26164129,117760.0,117750.0,0.26289]
[1752266391065,0.92164129,117760.0,117750.0,0.27899]
[1752266391270,0.90463129,117760.0,117750.0,0.28199]
[1752266391481,0.90463129,117760.0,117750.0,0.2608]
[1752266391482,0.92465129,117760.0,117750.0,0.2608]
[1752266391636,0.94075129,117760.0,117750.0,0.2608]
[1752266392025,1.02618122,117760.0,117750.0,0.2608]
[1752266411165,0.22352071,117760.0,117750.0,0.2608]
[1752266411378,0.22352071,117760.0,117730.0,0.4774932]
[1752266411379,0.02974085,117740.0,117730.0,0.4774932]
[1752266411585,0.03688428,117740.0,117730.0,0.7431332]
[1752266412047,0.4809295,117740.0,117730.0,0.7452232]
[1752266412253,0.47880607,117740.0,117730.0,0.7452232]
[1752266412454,0.564236,117740.0,117730.0,0.7452232]
[1752266412662,0.564236,117740.0,117730.0,0.7462232]
[1752266413938,0.564236,117740.0,117730.0,0.75948599]
[1752266414155,0.12019078,117740.0,117730.0,0.7462232]
[1752266414365,0.56338943,117740.0,117730.0,0.7462232]
[1752266414576,0.561266,117740.0,117730.0,0.75948596]
[1752266417171,0.561266,117740.0,117730.0,0.77894596]
[1752266418105,0.561266,117740.0,117730.0,0.77694596]
[1752266422613,0.561266,117740.0,117730.0,0.7636832]
[1752266422955,0.546066,117740.0,117730.0,0.7636832]
[1752266423567,0.562166,117740.0,117730.0,0.7636832]
[1752266425152,0.565296,117740.0,117730.0,0.7452232]
[1752266425761,0.562166,117740.0,117730.0,0.7452232]
[1752266426505,0.562166,117740.0,117730.0,0.7481832]
[1752266429776,0.544016,117740.0,117730.0,0.7481832]
[1752266429983,0.544016,117740.0,117730.0,0.7633832]
[1752266432621,0.559716,117740.0,117730.0,0.7633832]
[1752266433804,0.559716,117740.0,117730.0,0.7481832]
[1752266434028,0.561686,117740.0,117730.0,0.7481832]
[1752266434197,0.561686,117740.0,117730.0,0.7452232]
[1752266435397,0.11764078,117740.0,117730.0,0.7452232]
[1752266435579,0.56380943,117740.0,117730.0,0.7452232]
[1752266435744,0.561686,117740.0,117730.0,0.7452232]
[1752266445702,0.561686,117740.0,117730.0,0.5416632]
[1752266448101,0.11764078,117740.0,117730.0,0.5416632]
[1752266448244,0.11976421,117740.0,117730.0,0.5416632]
[1752266448445,0.56380943,117740.0,117730.0,0.5416632]
[1752266448645,0.561686,117740.0,117730.0,0.5416632]
[1752266449121,0.564636,117740.0,117730.0,0.5395732]
[1752266449315,1.02408122,117740.0,117730.0,0.4058932]
[1752266449684,0.580036,117740.0,117730.0,0.4058932]
[1752266449886,1.02408122,117740.0,117730.0,0.2739332]
[1752266450126,1.36408122,117740.0,117730.0,0.2739332]
[1752266450325,1.38617676,117740.0,117730.0,0.4059732]
[1752266450731,1.4121686,117740.0,117730.0,0.4059732]
[1752266451251,1.4121686,117740.0,117730.0,0.2739332]
[1752266451428,1.4141686,117740.0,117730.0,0.4059732]
[1752266451651,1.4121686,117740.0,117730.0,0.4059732]
[1752266452024,1.4161686,117740.0,117730.0,0.4059732]
[1752266452390,1.4151686,117740.0,117730.0,0.4059732]
[1752266453246,1.4171686,117740.0,117730.0,0.4059732]
[1752266458615,1.39507306,117740.0,117730.0,0.4059732]
[1752266465904,1.39507306,117740.0,117730.0,0.40487043]
[1752266476410,1.42054606,117740.0,117730.0,0.40487043]
[1752266478914,2.53095224,117740.0,117730.0,0.40487043]
[1752266479709,0.35454085,117730.0,117720.0,0.002]
[1752266479851,0.71952362,117730.0,117720.0,0.1334]
[1752266480066,0.87845982,117730.0,117720.0,0.1334]
[1752266480329,0.87845982,117730.0,117720.0,0.002]
[1752266480506,0.87845982,117730.0,117710.0,0.15144]
[1752266480507,0.04604085,117720.0,117710.0,0.15144]
[1752266480677,2.47409083,117720.0,117710.0,0.15144]
[1752266481014,2.4750274,117720.0,117710.0,0.02]
[1752266481231,2.4750274,117720.0,117710.0,0.15144]
[1752266482203,2.5005034,117720.0,117710.0,0.15144]
[1752266482405,1.48279509,117720.0,117710.0,0.15144]
[1752266482610,0.11590593,117720.0,117710.0,0.1720899]
[1752266482885,0.53654854,117720.0,117710.0,0.1720899]
[1752266483077,0.08842993,117720.0,117710.0,0.1720899]
[1752266483279,0.08842993,117720.0,117710.0,0.1874899]
[1752266483456,0.54996596,117720.0,117710.0,0.1874899]
[1752266483631,0.53542511,117720.0,117710.0,0.1874899]
[1752266483855,0.53242511,117720.0,117710.0,0.1874899]
[1752266484016,0.54696596,117720.0,117710.0,0.1874899]
[1752266484212,0.54796596,117720.0,117710.0,0.1874899]
[1752266485043,0.10397078,117720.0,117710.0,0.1874899]
[1752266485247,0.45953603,117720.0,117710.0,0.1874899]
[1752266485499,0.46153603,117720.0,117710.0,0.1874899]
[1752266485716,0.44699518,117720.0,117710.0,0.1874899]
[1752266487711,0.46053603,117720.0,117710.0,0.1874899]
[1752266488399,0.45853603,117720.0,117710.0,0.1874899]
[1752266489096,0.45953603,117720.0,117710.0,0.1874899]
[1752266489308,0.45953603,117720.0,117710.0,0.1884899]
[1752266489541,0.45853603,117720.0,117710.0,0.1884899]
[1752266491618,0.01454085,117720.0,117710.0,0.1884899]
[1752266492061,0.01454085,117730.0,117720.0,0.0316]
[1752266492273,0.01454085,117730.0,117720.0,0.03873368]
[1752266492488,0.45853603,117730.0,117720.0,0.03873368]
[1752266492672,0.44399518,117730.0,117720.0,0.03873368]
[1752266493118,0.01462506,117740.0,117730.0,0.0316]
[1752266493254,0.45862024,117740.0,117730.0,0.29778]
[1752266493459,0.45862024,117740.0,117730.0,0.30073]
[1752266497311,0.01462506,117740.0,117730.0,0.30073]
[1752266497531,0.45862024,117740.0,117730.0,0.30073]
[1752266498160,0.01462506,117740.0,117730.0,0.30073]
[1752266498599,0.45862024,117740.0,117730.0,0.30073]
[1752266500973,0.01462506,117740.0,117730.0,0.30073]
[1752266501180,8.421e-05,117740.0,117730.0,0.30073]
[1752266501386,0.44407939,117740.0,117730.0,0.30073]
[1752266506921,8.421e-05,117740.0,117730.0,0.38615993]
[1752266507132,8.421e-05,117740.0,117730.0,0.72615993]
[1752266507723,8.421e-05,117740.0,117730.0,0.72715993]
[1752266508127,8.421e-05,117740.0,117730.0,0.72615993]
[1752266508433,8.421e-05,117740.0,117730.0,0.72815993]
[1752266508757,8.421e-05,117740.0,117730.0,0.73015993]
[1752266509128,8.421e-05,117740.0,117730.0,0.72815993]
[1752266509943,8.421e-05,117740.0,117730.0,0.73115993]
[1752266513918,0.45853603,117760.0,117750.0,0.0155]
[1752266514127,0.45853603,117760.0,117750.0,0.28126]
[1752266514300,0.45853603,117760.0,117750.0,0.2843]
[1752266514523,0.45853603,117760.0,117750.0,0.2995]
[1752266517014,0.50375039,117770.0,117760.0,0.015]
[1752266517225,8.442e-05,117770.0,117760.0,0.24150296]
[1752266517437,8.442e-05,117770.0,117760.0,0.23938]
[1752266517818,0.4440796,117770.0,117760.0,0.23938]
[1752266519021,0.4440796,117770.0,117760.0,0.26539736]
[1752266519399,0.4450796,117770.0,117760.0,0.26539736]
[1752266519878,0.4450796,117770.0,117760.0,0.24969736]
[1752266520232,0.4440796,117770.0,117760.0,0.24969736]
[1752266520462,0.4440796,117770.0,117760.0,0.25069736]
[1752266521823,0.4460796,117770.0,117760.0,0.25069736]
[1752266522170,0.4440796,117770.0,117760.0,0.25069736]
[1752266522379,0.4440796,117770.0,117760.0,0.25169736]
[1752266523246,0.4410796,117770.0,117760.0,0.25169736]
[1752266524217,0.02984085,117780.0,117760.0,0.25169736]
[1752266524423,0.44399518,117770.0,117760.0,0.25169736]
[1752266524627,0.44399518,117770.0,117760.0,0.51465736]
[1752266525073,0.44399518,117770.0,117760.0,0.51365736]
[1752266525491,0.44399518,117770.0,117760.0,0.51465736]
[1752266526154,0.44399518,117770.0,117760.0,0.51365736]
[1752266526458,0.44399518,117770.0,117760.0,0.51465736]
[1752266529205,0.44399518,117770.0,117760.0,0.50757682]
[1752266530662,0.44399518,117770.0,117760.0,0.50534325]
[1752266531471,0.45853603,117770.0,117760.0,0.50534325]
[1752266533621,0.45853603,117770.0,117760.0,0.49965736]
[1752266535935,0.47443603,117770.0,117760.0,0.49965736]
[1752266536870,0.47946603,117770.0,117760.0,0.49661736]
[1752266537100,0.47946603,117770.0,117760.0,0.49577736]
[1752266538367,0.49596603,117770.0,117760.0,0.49577736]
[1752266540480,0.47946603,117770.0,117760.0,0.49577736]
[1752266540661,0.47639603,117770.0,117760.0,0.49577736]
[1752266540893,0.45853603,117770.0,117760.0,0.49887736]
[1752266541080,0.45853603,117770.0,117760.0,0.51477736]
[1752266541688,0.45853603,117770.0,117760.0,0.49887736]
[1752266541890,0.47413603,117770.0,117760.0,0.49887736]
[1752266542606,0.47612603,117770.0,117760.0,0.49577736]
[1752266543251,0.47919603,117770.0,117760.0,0.49577736]
[1752266543998,0.93909121,117770.0,117760.0,0.46744]
[1752266544465,1.02452114,117770.0,117760.0,0.46744]
[1752266544700,1.36452114,117770.0,117760.0,0.46744]
[1752266545320,1.36452114,117770.0,117760.0,0.46644]
[1752266546586,1.36452114,117770.0,117760.0,0.26292]
[1752266546794,0.35454085,117760.0,117740.0,0.002]
[1752266546996,1.02277457,117750.0,117740.0,0.00208442]
[1752266547176,1.02372114,117750.0,117740.0,0.00208442]
[1752266547800,0.57972596,117750.0,117740.0,0.00208442]
[1752266548000,1.02372114,117750.0,117740.0,0.26408442]
[1752266548870,1.02572114,117750.0,117740.0,0.26408442]
[1752266549529,0.58172596,117750.0,117740.0,0.26408442]
[1752266550471,0.58272596,117750.0,117740.0,0.26408442]
[1752266575903,0.13873078,117750.0,117740.0,0.26408442]
[1752266576051,0.58272596,117750.0,117740.0,0.26408442]
[1752266579007,0.59518864,117750.0,117740.0,0.26408442]
[1752266580466,0.15119346,117750.0,117740.0,0.26408442]
[1752266580671,0.59518864,117750.0,117740.0,0.26408442]
[1752266590960,1.14994806,117750.0,117740.0,0.26408442]
[1752266612849,2.14870266,117750.0,117740.0,0.26408442]
[1752266613740,2.48870266,117750.0,117740.0,0.13288442]
[1752266617775,1.48994806,117750.0,117740.0,0.13288442]
[1752266618134,1.48996806,117750.0,117740.0,0.13288442]
[1752266622569,2.48872266,117750.0,117740.0,0.13288442]
[1752266623348,1.48996806,117750.0,117740.0,0.13288442]
[1752266628166,1.48985912,117750.0,117740.0,0.13288442]
[1752266631675,2.48861372,117750.0,117740.0,0.13288442]
[1752266636095,2.48761372,117750.0,117740.0,0.13288442]
[1752266636318,2.49061372,117750.0,117740.0,0.13288442]
[1752266637173,2.48861372,117750.0,117740.0,0.13288442]
[1752266637400,2.49161372,117750.0,117740.0,0.13288442]
[1752266643319,0.0318,117730.0,117720.0,0.002]
[1752266643533,0.80677898,117730.0,117720.0,0.00208421]
[1752266643833,2.47429998,117730.0,117720.0,0.00208421]
[1752266644518,2.47529998,117730.0,117720.0,0.13280421]
[1752266644870,1.47654538,117730.0,117720.0,0.13280421]
[1752266645869,2.47629998,117730.0,117720.0,0.13280421]
[1752266646229,1.47754538,117730.0,117720.0,0.13280421]
[1752266646784,1.10780718,117730.0,117720.0,0.13774421]
[1752266647006,1.10780718,117730.0,117720.0,0.15354421]
[1752266647271,1.44072538,117730.0,117720.0,0.13774421]
[1752266647432,1.45921538,117730.0,117720.0,0.13476421]
[1752266648342,1.44281538,117730.0,117720.0,0.13774421]
[1752266648812,0.44406078,117730.0,117720.0,0.13774421]
[1752266648997,1.33219352,117730.0,117720.0,0.13774421]
[1752266649394,1.34789352,117730.0,117720.0,0.13476421]
[1752266649866,1.35082352,117730.0,117720.0,0.13476421]
[1752266650748,1.34789352,117730.0,117720.0,0.13476421]
[1752266653165,1.35082352,117730.0,117720.0,0.13476421]
[1752266653384,1.36612352,117730.0,117720.0,0.13280421]
[1752266658178,1.33219352,117730.0,117720.0,0.13784421]
[1752266658391,0.99219352,117730.0,117720.0,0.13784421]
[1752266658983,1.33219352,117730.0,117720.0,0.13784421]
[1752266667189,1.33219352,117730.0,117720.0,0.13482421]
[1752266667393,1.34829352,117730.0,117720.0,0.13482421]
[1752266668928,1.45939238,117730.0,117720.0,0.13482421]
[1752266669454,1.46261238,117730.0,117720.0,0.13482421]
[1752266672151,1.53105865,117730.0,117720.0,0.13280421]
[1752266672399,1.47801238,117730.0,117720.0,0.13280421]
[1752266674900,0.58821732,117730.0,117720.0,0.13280421]
[1752266675108,2.54069025,117730.0,117720.0,0.13280421]
[1752266675880,2.53969025,117730.0,117720.0,0.13280421]
[1752266676090,2.54269025,117730.0,117720.0,0.13280421]
[1752266676253,2.47324398,117730.0,117720.0,0.13280421]
[1752266676889,1.3631653,117730.0,117720.0,0.13280421]
[1752266677110,1.3651653,117730.0,117720.0,0.13280421]
[1752266677721,0.47678078,117730.0,117720.0,0.13280421]
[1752266677927,0.88625304,117730.0,117720.0,0.13784421]
[1752266678101,1.31381445,117730.0,117720.0,0.15344421]
[1752266678306,0.42542993,117730.0,117720.0,0.15344421]
[1752266678535,0.86962219,117730.0,117720.0,0.16844421]
[1752266678735,0.52962219,117730.0,117720.0,0.16844421]
[1752266678895,0.54416304,117730.0,117720.0,0.16844421]
[1752266679298,0.9883553,117730.0,117720.0,0.16844421]
[1752266679748,0.9863553,117730.0,117720.0,0.16844421]
[1752266679956,0.9873553,117730.0,117720.0,0.16844421]
[1752266680931,0.9843553,117730.0,117720.0,0.16844421]
[1752266681374,0.9863553,117730.0,117720.0,0.15344421]
[1752266686987,0.09797078,117730.0,117720.0,0.15344421]
[1752266687184,0.9863553,117730.0,117720.0,0.15344421]
[1752266689751,1.0229753,117730.0,117720.0,0.13280421]
[1752266692930,1.0229753,117730.0,117720.0,0.1320416]
[1752266700450,1.0229753,117730.0,117720.0,0.1341916]
[1752266700671,0.09797078,117730.0,117720.0,0.1535316]
[1752266700882,0.54216304,117730.0,117720.0,0.1535316]
[1752266701106,0.54216304,117730.0,117720.0,0.1691316]
[1752266701107,0.9863553,117730.0,117720.0,0.1691316]
[1752266701539,0.9863553,117730.0,117720.0,0.1535316]
[1752266705075,0.90592537,117730.0,117720.0,0.1535316]
[1752266706541,0.46173311,117730.0,117720.0,0.1698316]
[1752266706748,0.90592537,117730.0,117720.0,0.1698316]
[1752266707162,0.90592537,117730.0,117720.0,0.1535316]
[1752266710480,0.01754085,117730.0,117720.0,0.1535316]
[1752266710676,0.90592537,117730.0,117720.0,0.1535316]
[1752266720062,0.90592537,117730.0,117720.0,0.1371316]
[1752266720263,0.90790537,117730.0,117720.0,0.1371316]
[1752266720664,0.92330537,117730.0,117720.0,0.1371316]
[1752266725593,0.92330537,117730.0,117720.0,0.1341916]
[1752266726509,0.03492085,117730.0,117720.0,0.1341916]
[1752266726746,0.92330537,117730.0,117720.0,0.1371216]
[1752266726956,0.90592537,117730.0,117720.0,0.1522216]
[1752266727565,0.90592537,117730.0,117720.0,0.1371216]
[1752266728596,0.90790537,117730.0,117720.0,0.1341916]
[1752266728733,0.92440537,117730.0,117720.0,0.1341916]
[1752266729614,0.44419226,117730.0,117720.0,0.1522216]
[1752266729819,0.44419226,117730.0,117720.0,0.17034528]
[1752266733231,0.44419226,117730.0,117720.0,0.15434528]
[1752266733795,0.44434226,117730.0,117720.0,0.15434528]
[1752266736500,0.00015,117730.0,117720.0,0.15434528]
[1752266736926,0.44434226,117730.0,117720.0,0.15434528]
[1752266740502,0.44434226,117730.0,117720.0,0.17094528]
[1752266740632,0.00015,117730.0,117720.0,0.17094528]
[1752266740832,0.00015,117730.0,117720.0,0.25637521]
[1752266741072,0.00015,117730.0,117720.0,0.25425153]
[1752266742232,0.44434226,117730.0,117720.0,0.25425153]
[1752266743587,0.44434226,117730.0,117720.0,0.29314431]
[1752266743821,0.44434226,117730.0,117720.0,0.29014431]
[1752266744298,0.44434226,117730.0,117720.0,0.29514431]
[1752266746664,0.44434226,117730.0,117720.0,0.29714431]
[1752266747082,0.00015,117730.0,117720.0,0.29714431]
[1752266747473,0.44434226,117730.0,117720.0,0.29514431]
[1752266747684,0.44434226,117730.0,117720.0,0.34503438]
[1752266747952,0.44434226,117730.0,117720.0,0.32843438]
[1752266748366,0.44434226,117730.0,117720.0,0.31803438]
[1752266749192,0.44434226,117730.0,117720.0,0.30293438]
[1752266749849,0.44434226,117730.0,117720.0,0.31813438]
[1752266750556,0.44434226,117730.0,117720.0,0.30293438]
[1752266751140,0.43108226,117730.0,117720.0,0.30293438]
[1752266752876,0.77108226,117730.0,117720.0,0.30293438]
[1752266753091,0.77316226,117730.0,117720.0,0.30000438]
[1752266753300,0.43316226,117730.0,117720.0,0.30322438]
[1752266753507,0.43108226,117730.0,117720.0,0.30322438]
[1752266754874,0.44856226,117730.0,117720.0,0.30000438]
[1752266755079,0.92576537,117730.0,117720.0,0.2723616]
[1752266757035,0.93603939,117730.0,117720.0,0.2723616]
[1752266760905,0.06076487,117730.0,117720.0,0.2723616]
[1752266761128,0.94914939,117730.0,117720.0,0.2723616]
[1752266767516,1.28914939,117730.0,117720.0,0.2723616]
[1752266771377,0.94914939,117730.0,117720.0,0.2723616]
[1752266779015,0.93887537,117730.0,117720.0,0.2723616]
[1752266781034,1.04945779,117730.0,117720.0,0.2723616]
[1752266788795,1.03491694,117730.0,117720.0,0.2723616]
[1752266790435,1.03491694,117730.0,117720.0,0.0093216]
[1752266790652,1.03491694,117730.0,117720.0,0.1406816]
[1752266790894,2.11931381,117730.0,117720.0,0.1406816]
[1752266791114,1.12034687,117730.0,117720.0,0.1406816]
[1752266791495,1.12034687,117730.0,117720.0,0.1326816]
[1752266791869,1.12034687,117730.0,117720.0,0.1336816]
[1752266792904,1.00962375,117730.0,117720.0,0.1336816]
[1752266796548,1.34962375,117730.0,117720.0,0.1336816]
[1752266798568,1.00962375,117730.0,117720.0,0.1336816]
[1752266798779,1.34962375,117730.0,117720.0,0.0023216]
[1752266799008,1.34962375,117730.0,117720.0,0.1339216]
[1752266799217,1.80828651,117730.0,117720.0,0.1339216]
[1752266799428,0.34,117720.0,117710.0,0.2227399]
[1752266799637,0.34,117720.0,117700.0,0.002]
[1752266799638,1.27458467,117720.0,117700.0,0.002]
[1752266799874,0.04634085,117710.0,117700.0,0.002]
[1752266800118,0.0318,117700.0,117680.0,0.022]
[1752266800319,1.26004382,117690.0,117680.0,0.02188778]
[1752266800512,1.26518382,117690.0,117680.0,0.02188778]
[1752266800676,0.46236993,117690.0,117680.0,0.28636778]
[1752266801075,1.35061375,117690.0,117680.0,0.28636778]
[1752266801285,0.46236993,117690.0,117680.0,0.28636778]
[1752266801447,1.35061375,117690.0,117680.0,0.28636778]
[1752266801655,1.35061375,117690.0,117680.0,0.28641748]
[1752266803526,1.35161375,117690.0,117680.0,0.28641748]
[1752266803934,1.37765572,117690.0,117680.0,0.28641748]
[1752266804498,1.37865572,117690.0,117680.0,0.28641748]
[1752266804700,0.4904119,117690.0,117680.0,0.28641748]
[1752266804921,1.37865572,117690.0,117680.0,0.28641748]
[1752266805227,1.40413672,117690.0,117680.0,0.28641748]
[1752266806624,1.41867757,117690.0,117680.0,0.28641748]
[1752266807692,0.5158929,117690.0,117680.0,0.28641748]
[1752266807902,0.53043375,117690.0,117680.0,0.28641748]
[1752266808104,1.41867757,117690.0,117680.0,0.28641748]
[1752266814947,0.53043375,117690.0,117680.0,0.28641748]
[1752266815175,1.41867757,117690.0,117680.0,0.28641748]
[1752266817730,1.40413672,117690.0,117680.0,0.28641748]
[1752266822795,1.40413672,117690.0,117680.0,0.28274313]
[1752266823174,1.37809475,117690.0,117680.0,0.28274313]
[1752266824034,1.40317746,117690.0,117680.0,0.28274313]
[1752266824325,0.51493364,117690.0,117680.0,0.28274313]
[1752266824524,1.84729937,117690.0,117680.0,0.28274313]
[1752266824724,1.40317746,117690.0,117680.0,0.28274313]
[1752266825585,1.41771831,117690.0,117680.0,0.28274313]
[1752266825796,1.35895475,117690.0,117680.0,0.28472313]
[1752266826007,0.53155184,117690.0,117680.0,0.30345313]
[1752266826236,0.53155184,117690.0,117680.0,0.31570821]
[1752266826237,0.44612191,117690.0,117680.0,0.31570821]
[1752266829011,0.44612191,117690.0,117680.0,0.40113814]
[1752266829012,0.002,117690.0,117680.0,0.40113814]
[1752266830001,0.001,117690.0,117680.0,0.40113814]
[1752266830206,0.001,117690.0,117680.0,0.40313814]
[1752266830565,0.44412191,117700.0,117690.0,0.0317]
[1752266830704,0.44412191,117700.0,117690.0,0.03580422]
[1752266830906,0.44612191,117710.0,117700.0,0.0317]
[1752266831110,0.44612191,117710.0,117700.0,0.30273]
[1752266833035,0.44712191,117710.0,117700.0,0.30273]
[1752266835380,0.003,117710.0,117700.0,0.30273]